bitfinex/quotes_ETHUSD_20240819
["timestamp","ask_amount","ask_price","bid_price","bid_amount"]
[1724063612434,3.86922,2584.5,2584.1,4.712]
[1724063612837,0.0783289,2584.4,2584.1,4.712]
[1724063614120,0.0783289,2584.4,2584.1,8.5818]
[1724063616811,0.0783289,2584.4,2584.1,12.45148]
[1724063617013,3.86892,2584.7,2584.1,9.961428]
[1724063617014,7.73794,2584.7,2584.1,9.961428]
[1724063617319,0.07699614,2584.6,2584.4,3.86929]
[1724063617655,3.86896,2584.7,2584.2,5.21566]
[1724063617809,0.07699614,2584.6,2584.2,5.21559]
[1724063618331,0.07699614,2584.6,2584.2,9.08519]
[1724063618538,0.07699614,2584.6,2584.2,5.21559]
[1724063618924,0.07699614,2584.6,2584.2,3.86959]
[1724063619328,4.72755975,2584.6,2584.2,3.86959]
[1724063619697,3.94608614,2584.6,2584.1,8.5818]
[1724063620347,8.62542,2584.5,2584.1,3.8698]
[1724063620551,9.02002861,2584.5,2584.1,3.8698]
[1724063620753,0.07680807,2584.4,2584.1,3.8698]
[1724063623355,0.07680807,2584.4,2584.1,7.7396]
[1724063623558,0.07680807,2584.4,2584.2,8.68256]
[1724063623767,3.86907,2584.6,2584.2,8.68256]
[1724063623970,0.07675215,2584.3,2584.2,4.8129]
[1724063624122,3.86907,2584.6,2584.2,4.8129]
[1724063624324,0.07674707,2584.5,2584.2,4.8129]
[1724063625963,3.94596707,2584.5,2584.2,4.8129]
[1724063626172,4.72745578,2584.5,2584.1,3.8698]
[1724063628533,3.86939,2584.4,2584.0,5.9987]
[1724063628755,4.72745578,2584.5,2584.0,9.86857]
[1724063628941,7.73851,2584.5,2584.0,9.86857]
[1724063629145,0.07672164,2584.4,2584.0,8.52257]
[1724063629339,0.07672164,2584.4,2584.0,4.6527]
[1724063629541,0.07672164,2584.4,2584.0,8.5226]
[1724063630222,1.3571008,2584.4,2584.0,3.8699]
[1724063631371,5.2264708,2584.4,2584.0,3.8699]
[1724063632881,3.86992,2584.1,2583.4,5.0056]
[1724063633090,1.346,2583.5,2582.9,5.0056]
[1724063633375,1.346,2583.5,2582.7,4.68204598]
[1724063633376,3.87139,2583.1,2582.7,5.0056]
[1724063633547,3.87139,2583.1,2582.4,5.0056]
[1724063633548,3.87202,2582.7,2582.4,5.0056]
[1724063633734,7.7446,2582.5,2582.1,5.0056]
[1724063633937,3.87263,2582.3,2581.7,4.8521]
[1724063634147,5.21867,2582.2,2581.7,5.92749766]
[1724063634344,3.8729,2582.1,2581.7,4.8521]
[1724063634774,0.07550595,2582.0,2581.7,4.8521]
[1724063634966,3.8729,2582.1,2581.7,4.8521]
[1724063635139,3.8729,2582.1,2581.3,3.87388]
[1724063635334,3.87297,2582.0,2581.4,3.87384]
[1724063635560,0.07550595,2581.9,2581.4,3.87384]
[1724063635768,0.07550595,2581.9,2581.4,4.648638]
[1724063635970,3.94861595,2581.9,2581.4,4.648638]
[1724063636174,0.07550595,2581.9,2581.5,3.87366]
[1724063636635,7.74519,2582.3,2581.6,3.87348]
[1724063636839,0.07484915,2581.8,2581.6,3.87348]
[1724063637076,8.1441238,2582.3,2581.6,3.87348]
[1724063637239,0.07484915,2581.7,2581.6,3.87348]
[1724063637437,4.2715038,2582.3,2581.7,3.87341]
[1724063637638,0.07484915,2582.2,2581.7,3.87341]
[1724063638692,0.07484915,2582.2,2581.7,7.74674]
[1724063638897,0.07484915,2582.2,2581.7,3.87333]
[1724063639265,0.07484915,2582.2,2581.6,0.387366]
[1724063639452,3.87199,2582.7,2581.9,3.87307]
[1724063639653,3.87199,2582.7,2581.6,8.76183]
[1724063639654,3.8718,2582.8,2582.2,3.87254]
[1724063639853,0.07484915,2582.6,2582.3,3.87248]
[1724063640150,12.95848,2582.9,2582.3,3.87248]
[1724063640151,0.07484915,2582.5,2582.4,3.87236]
[1724063640591,3.87137,2583.1,2582.2,4.8883]
[1724063640592,3.87137,2583.1,2582.5,3.87218]
[1724063640799,8.604007,2583.1,2582.5,3.87213]
[1724063640999,0.07484915,2583.0,2582.6,3.87206]
[1724063641168,0.07484915,2583.0,2582.9,8.75991]
[1724063641356,0.07484915,2583.0,2582.9,19.50313]
[1724063641687,3.86999,2584.0,2583.4,3.87076]
[1724063641862,0.07484915,2583.9,2583.4,3.87076]
[1724063642063,0.07484915,2583.9,2583.1,3.87127]
[1724063642264,0.07484915,2583.9,2583.7,3.87033]
[1724063642455,8.61071,2584.2,2583.7,3.87033]
[1724063642653,0.07484915,2583.8,2583.7,3.87033]
[1724063642851,8.61071,2584.2,2583.7,3.87033]
[1724063643055,0.07484915,2583.8,2583.7,3.87033]
[1724063643793,0.07484915,2583.8,2583.7,3.87032]
[1724063643997,3.86938,2584.4,2583.8,3.87026]
[1724063644195,3.86938,2584.4,2583.8,7.74052]
[1724063644492,0.07484915,2584.3,2583.9,3.87011]
[1724063644707,0.07484915,2584.3,2583.8,3.87026]
[1724063644893,3.8697,2584.2,2583.6,3.87042]
[1724063645194,3.8697,2584.2,2583.6,7.7409]
[1724063645369,0.07484915,2584.1,2583.6,7.7409]
[1724063646176,0.07484915,2584.1,2583.6,7.74088]
[1724063646373,0.07484915,2584.1,2583.9,3.86997]
[1724063646677,3.86936,2584.5,2583.9,3.86997]
[1724063646877,8.5178,2584.6,2584.0,3.86994]
[1724063647078,1.31399758,2584.4,2584.0,3.86994]
[1724063647423,5.18338758,2584.4,2583.8,3.87013]
[1724063647720,3.86982,2584.1,2583.6,3.87047]
[1724063648227,0.07528158,2584.0,2583.6,3.87047]
[1724063648434,3.87014,2583.9,2583.4,3.87075]
[1724063648747,3.87014,2583.9,2583.2,11.57083]
[1724063649022,3.94563158,2583.8,2583.2,3.87103]
[1724063649381,3.94563158,2583.8,2583.2,7.7421]
[1724063649581,7.81599158,2583.8,2583.2,3.87103]
[1724063649883,3.87066,2583.6,2583.1,3.87121]
[1724063650078,4.94073484,2583.8,2583.1,3.87121]
[1724063650335,3.87109,2583.3,2582.7,3.87183]
[1724063650778,0.07528158,2583.2,2582.8,3.87166]
[1724063651216,3.87109,2583.3,2582.8,3.87166]
[1724063651413,0.07528158,2583.1,2582.8,4.646009]
[1724063651690,3.87081,2583.5,2582.9,3.87161]
[1724063651896,4.79581835,2583.5,2582.9,3.87161]
[1724063652103,0.07612155,2583.4,2582.9,3.87161]
[1724063652509,0.07612155,2583.4,2583.0,3.87145]
[1724063652915,0.07612155,2583.4,2583.0,3.87139]
[1724063653119,0.07612155,2583.4,2583.0,7.74277]
[1724063653349,0.07612155,2583.4,2583.0,7.74276]
[1724063653532,0.07612155,2583.4,2583.0,3.87138]
[1724063653745,0.07612155,2583.4,2583.1,3.8713]
[1724063653917,8.7558,2583.6,2583.1,3.8713]
[1724063654116,8.7558,2583.6,2583.0,7.74275]
[1724063654117,1.31203335,2583.5,2583.0,7.74275]
[1724063654338,0.07604524,2583.4,2583.0,7.74274]
[1724063654718,0.07604524,2583.4,2583.0,3.87137]
[1724063655140,0.07604524,2583.4,2583.0,7.74275]
[1724063656151,0.07604524,2583.4,2583.0,3.87137]
[1724063656910,3.94691524,2583.4,2582.8,7.74328]
[1724063657137,5.3483961,2583.4,2582.8,7.74328]
[1724063657357,0.07604524,2583.4,2582.5,11.58436]
[1724063657564,3.86997,2584.0,2583.5,3.8707]
[1724063657769,0.07535683,2583.9,2583.5,3.8707]
[1724063658564,3.94547683,2583.9,2583.3,3.87087]
[1724063659543,3.87042,2583.7,2583.1,7.74239]
[1724063659757,3.87042,2583.7,2583.2,3.87116]
[1724063659962,0.07535683,2583.6,2583.2,3.87116]
[1724063660485,3.87076,2583.5,2583.0,3.87139]
[1724063660776,7.74183,2583.4,2582.9,3.87148]
[1724063661089,0.07535683,2583.3,2582.9,3.87148]
[1724063662065,0.07535683,2583.3,2582.7,3.87181]
[1724063662216,3.87117,2583.2,2582.7,3.87181]
[1724063662411,3.87132,2583.1,2582.6,7.883346]
[1724063662677,3.8715,2583.0,2582.6,3.0]
[1724063662965,0.07535683,2583.0,2582.6,6.87204]
[1724063663315,3.94682683,2583.0,2582.6,3.0]
[1724063663511,3.94682683,2583.0,2582.5,6.87213]
[1724063664177,4.9689,2582.9,2582.3,3.87251]
[1724063664315,9.73209268,2582.9,2582.4,6.87234]
[1724063664670,4.9689,2582.9,2582.4,6.87228]
[1724063664815,0.07535683,2582.8,2582.5,3.87212]
[1724063665231,3.87133,2583.1,2582.6,3.87204]
[1724063665453,4.7185,2583.2,2582.7,3.87191]
[1724063665655,5.577462,2583.2,2582.6,3.87204]
[1724063665870,4.26538168,2583.5,2582.5,1.07444]
[1724063665871,5.20901168,2583.5,2582.5,1.07444]
[1724063666080,5.20901168,2583.5,2582.2,3.87265]
[1724063666081,4.8144,2583.5,2583.1,3.87128]
[1724063666236,4.8144,2583.5,2582.9,3.87151]
[1724063666237,3.87088,2583.4,2582.9,3.87151]
[1724063666544,3.87102,2583.3,2582.9,3.87151]
[1724063667084,4.739377,2583.4,2582.9,7.74301]
[1724063667395,0.868497,2583.4,2583.1,3.87131]
[1724063668568,4.739427,2583.4,2582.9,3.8715]
[1724063668865,4.8144,2583.5,2582.7,3.87182]
[1724063668866,3.87124,2583.2,2582.7,3.87182]
[1724063669634,3.87133,2583.1,2582.6,3.87205]
[1724063669860,4.31528297,2583.1,2582.6,3.87205]
[1724063670175,3.87118,2583.2,2582.6,3.87196]
[1724063670335,3.87132,2583.1,2582.6,3.87196]
[1724063670999,4.7161,2585.3,2583.7,4.9184]
[1724063671201,4.7161,2584.6,2583.8,4.362]
[1724063671333,3.86931,2584.5,2583.8,7.74034]
[1724063671529,0.858541,2584.4,2583.8,3.87016]
[1724063671746,0.858541,2584.4,2583.8,7.74034]
[1724063671956,0.858541,2584.4,2584.0,3.86996]
[1724063672530,0.858541,2584.4,2584.0,3.86989]
[1724063672677,0.858541,2584.4,2584.0,7.73976]
[1724063672892,0.858541,2584.4,2584.0,7.73975]
[1724063673189,0.858541,2584.4,2584.1,3.86976]
[1724063673408,0.858541,2584.4,2584.0,3.86987]
[1724063674075,8.83104,2585.0,2584.2,3.86954]
[1724063674604,6.94375781,2584.9,2584.4,3.86934]
[1724063674744,7.89686181,2584.9,2584.4,3.86934]
[1724063675455,3.86878,2584.8,2584.2,3.86954]
[1724063675654,3.86878,2584.8,2584.2,7.73912]
[1724063675878,0.86532765,2584.7,2584.2,7.73911]
[1724063676192,0.86532765,2584.7,2584.3,3.8695]
[1724063677125,0.86532765,2584.7,2584.4,3.86936]
[1724063678866,0.86532765,2584.7,2584.3,3.86951]
[1724063679131,0.07562647,2584.7,2584.3,3.86951]
[1724063679615,0.0756519,2584.6,2584.3,3.86951]
[1724063679965,3.86878,2584.8,2584.3,3.86951]
[1724063680164,3.9445819,2584.7,2584.2,3.86966]
[1724063682703,3.9445819,2584.7,2584.3,3.8695]
[1724063684478,3.9445819,2584.7,2584.2,3.86966]
[1724063684788,7.8136319,2584.7,2584.1,4.256747]
[1724063685119,3.86907,2584.6,2584.1,3.86973]
[1724063685495,3.9445819,2584.7,2584.1,3.86973]
[1724063685496,0.0762523,2584.5,2584.1,7.73947]
[1724063685876,3.86893,2584.7,2584.2,3.86964]
[1724063686113,0.0762523,2584.4,2584.2,3.86964]
[1724063686375,0.07627265,2584.3,2584.2,3.86964]
[1724063686585,3.86893,2584.7,2584.2,4.643577]
[1724063686790,0.07627265,2584.6,2584.2,4.643577]
[1724063687285,0.07627265,2584.6,2584.2,3.86964]
[1724063688735,0.07627265,2584.6,2584.0,3.86986]
[1724063688736,3.94535265,2584.6,2584.0,3.86986]
[1724063688895,0.07627265,2584.6,2584.1,3.86974]
[1724063689226,4.724,2584.5,2584.1,3.86974]
[1724063689835,0.07625739,2584.4,2584.1,3.86974]
[1724063690804,0.07625739,2584.4,2584.2,3.86959]
[1724063691228,3.86899,2584.7,2584.2,3.86959]
[1724063691432,0.07625739,2584.3,2584.2,3.86959]
[1724063691637,3.86899,2584.7,2584.2,3.86959]
[1724063691841,0.07625739,2584.3,2584.2,3.86959]
[1724063691988,4.7693,2584.8,2584.4,3.86928]
[1724063692189,0.07625739,2584.7,2584.4,3.86928]
[1724063692383,3.86867,2584.9,2584.4,3.86928]
[1724063692659,0.0762523,2584.8,2584.4,3.86928]
[1724063694307,5.02639453,2584.8,2584.3,3.8695]
[1724063695046,3.86894,2584.7,2584.3,3.8695]
[1724063695428,0.07635402,2584.6,2584.3,3.8695]
[1724063699011,0.07635402,2584.6,2584.2,4.6923]
[1724063699213,0.07635402,2584.6,2584.2,8.56196]
[1724063700415,0.07635402,2584.6,2584.3,3.8695]
[1724063700621,3.86878,2584.8,2584.3,7.73895]
[1724063700936,0.07635402,2584.5,2584.3,3.86945]
[1724063701115,0.07629808,2584.4,2584.3,3.86945]
[1724063701314,3.86878,2584.8,2584.3,3.86945]
[1724063701754,0.07629808,2584.7,2584.3,3.86942]
[1724063701967,3.86878,2584.8,2584.3,3.86942]
[1724063702472,3.94523808,2584.7,2584.3,3.86942]
[1724063702787,7.81423808,2584.7,2584.2,8.56195]
[1724063703452,3.94523808,2584.7,2584.2,8.56195]
[1724063703656,4.40844919,2584.7,2584.2,8.56195]
[1724063705343,4.40844919,2584.7,2584.2,3.86965]
[1724063705845,4.40844919,2584.7,2583.6,3.241]
[1724063705846,3.86937,2584.4,2583.9,7.74005]
[1724063706274,3.94590401,2584.3,2583.8,3.87026]
[1724063706493,3.86974,2584.2,2583.6,3.87048]
[1724063706654,3.86989,2584.1,2583.6,3.87048]
[1724063706851,4.59277263,2584.1,2583.4,3.87076]
[1724063707107,4.59277263,2584.1,2582.9,3.87147]
[1724063707108,3.87042,2583.7,2583.2,3.87105]
[1724063707596,0.07625738,2583.6,2583.2,7.74214]
[1724063707792,0.07625738,2583.6,2583.2,3.87105]
[1724063708361,9.25531112,2583.6,2583.0,3.87134]
[1724063708557,3.87079,2583.5,2583.0,7.74271]
[1724063708814,0.0760081,2583.4,2583.1,3.87131]
[1724063709761,0.0760081,2583.4,2583.0,3.87144]
[1724063710294,3.87102,2583.3,2582.8,12.73903]
[1724063710519,3.87102,2583.3,2582.5,4.154968]
[1724063710520,4.65280181,2583.3,2582.6,3.87195]
[1724063710670,3.87147,2583.0,2582.5,3.87221]
[1724063710996,0.07590123,2582.9,2582.5,3.87221]
[1724063711780,0.07590123,2582.9,2582.7,3.87191]
[1724063711983,3.87118,2583.2,2582.8,3.87175]
[1724063712195,0.07573327,2583.1,2582.9,3.87158]
[1724063712500,3.87057,2583.6,2583.1,3.87124]
[1724063712721,3.87007,2584.0,2583.2,0.06194175]
[1724063712874,3.87007,2584.0,2583.5,3.8706]
[1724063713062,3.86977,2584.2,2583.6,3.87046]
[1724063713063,3.86975,2584.2,2583.6,3.87046]
[1724063713397,4.9781,2584.3,2583.8,3.87026]
[1724063713398,8.84762,2584.3,2583.8,3.87026]
[1724063714362,3.86945,2584.4,2583.8,3.87017]
[1724063715281,3.86967,2584.2,2583.8,3.87017]
[1724063716107,0.92602822,2584.4,2583.4,4.8975]
[1724063716266,3.86969,2584.2,2583.5,3.87061]
[1724063716469,3.87004,2584.0,2583.5,3.87061]
[1724063717221,3.87004,2584.0,2583.3,3.87091]
[1724063717504,3.87042,2583.7,2583.2,3.87116]
[1724063717896,3.87042,2583.7,2583.1,8.48141]
[1724063718104,3.87042,2583.7,2583.1,12.35272]
[1724063718464,3.87042,2583.7,2583.1,8.48141]
[1724063718739,3.87042,2583.7,2583.1,9.629551]
[1724063719498,3.87027,2583.8,2583.3,3.87099]
[1724063719718,0.07537721,2583.6,2583.3,3.87099]
[1724063720038,0.07537721,2583.5,2583.2,3.87109]
[1724063720237,0.07537721,2583.5,2583.2,5.2211541]
[1724063720439,3.87042,2583.7,2583.2,5.2211541]
[1724063720613,0.07537721,2583.4,2583.2,5.2211541]
[1724063720814,3.87027,2583.8,2583.3,3.87101]
[1724063721030,0.07537721,2583.7,2583.3,3.87101]
[1724063721228,3.87027,2583.8,2583.3,3.87101]
[1724063721445,0.07537721,2583.7,2583.3,3.87101]
[1724063721808,3.87027,2583.8,2583.3,3.87101]
[1724063722140,0.07537721,2583.7,2583.3,3.87101]
[1724063722347,3.87057,2583.6,2583.1,9.629401]
[1724063722640,0.07537721,2583.5,2583.1,8.48126]
[1724063723031,3.87083,2583.5,2583.0,3.87135]
[1724063723342,0.07537721,2583.4,2583.0,3.87135]
[1724063727352,7.74218,2583.3,2582.8,3.87175]
[1724063727669,3.94642852,2583.2,2582.7,3.87187]
[1724063728735,0.07516852,2583.2,2582.8,3.87174]
[1724063729152,7.74165,2583.5,2582.8,3.87174]
[1724063729463,5.124165,2583.5,2583.0,8.49026]
[1724063729618,0.07506161,2583.4,2583.0,8.49026]
[1724063729823,0.07506161,2583.4,2583.1,3.87127]
[1724063730167,8.66276,2583.6,2583.1,3.87127]
[1724063730367,0.07507689,2583.3,2583.1,3.87127]
[1724063730519,10.32677507,2583.6,2583.1,3.87127]
[1724063730720,0.07507689,2583.2,2583.1,3.87127]
[1724063730926,10.32677507,2583.6,2583.1,3.87127]
[1724063731131,0.07513289,2583.2,2583.1,3.87127]
[1724063731634,3.87074,2583.5,2583.1,3.87127]
[1724063731842,0.07513289,2583.4,2583.1,3.87127]
[1724063732460,0.14664623,2583.4,2583.1,3.87127]
[1724063733995,0.14664623,2583.4,2583.1,7.74254]
[1724063734147,0.14664623,2583.4,2583.1,3.87127]
[1724063734345,5.53458507,2583.6,2583.1,3.87124]
[1724063734680,0.14665133,2583.5,2583.1,3.87123]
[1724063735497,5.74522697,2583.5,2582.7,8.43097]
[1724063735656,3.87111,2583.3,2582.8,3.87168]
[1724063735984,3.8709,2583.4,2582.9,3.87153]
[1724063736284,5.53460507,2583.6,2583.1,3.87128]
[1724063736483,5.53460507,2583.6,2583.0,3.87146]
[1724063736484,0.1465495,2583.3,2583.2,3.87115]
[1724063736644,6.02222751,2583.6,2583.2,3.87115]
[1724063736850,0.1465495,2583.3,2583.2,3.87115]
[1724063737153,0.1465495,2583.3,2583.0,3.87146]
[1724063737154,0.1465495,2583.3,2583.1,4.6998]
[1724063737352,7.74127,2583.6,2583.1,8.57111]
[1724063737550,9.339469,2583.6,2583.1,8.57111]
[1724063737787,0.1465495,2583.5,2583.1,8.57111]
[1724063737993,0.1465495,2583.5,2583.2,3.87113]
[1724063738680,0.1465495,2583.5,2583.2,7.74215]
[1724063738993,3.87043,2583.7,2583.2,5.115255]
[1724063739281,3.87057,2583.6,2583.1,3.8713]
[1724063739487,4.0171195,2583.6,2583.1,3.8713]
[1724063739687,3.87072,2583.5,2583.1,3.8713]
[1724063740047,5.46066195,2583.6,2583.1,3.8713]
[1724063740426,0.1465495,2583.5,2583.1,3.8713]
[1724063740761,0.1465495,2583.5,2583.1,3.87124]
[1724063741565,0.1465495,2583.5,2583.2,3.87115]
[1724063741896,8.46429,2583.7,2583.2,3.87115]
[1724063742365,0.1465495,2583.6,2583.2,3.87115]
[1724063742877,0.1465495,2583.6,2583.3,4.7811]
[1724063743062,0.1465495,2583.6,2583.5,3.87071]
[1724063743255,3.87008,2584.0,2583.5,3.87071]
[1724063743464,0.1465495,2583.6,2583.5,3.87071]
[1724063743788,3.87008,2584.0,2583.5,3.87071]
[1724063743990,0.1465495,2583.6,2583.5,3.87071]
[1724063744204,3.87008,2584.0,2583.5,3.87071]
[1724063744704,0.1465495,2583.9,2583.6,3.87054]
[1724063744861,0.1465495,2583.9,2583.7,3.87041]
[1724063745062,3.86982,2584.1,2583.6,3.87054]
[1724063745267,0.1465495,2583.8,2583.6,3.87054]
[1724063745570,0.1465495,2583.7,2583.6,3.87054]
[1724063745792,3.86997,2584.0,2583.6,3.87054]
[1724063745969,0.1465495,2583.9,2583.5,3.87071]
[1724063748307,0.1465495,2583.9,2583.5,3.87062]
[1724063749180,4.0166795,2583.9,2583.5,3.87062]
[1724063749899,0.1465495,2583.9,2583.5,3.87071]
[1724063750461,0.1465495,2583.9,2583.3,8.652]
[1724063750663,3.87045,2583.7,2583.3,3.87087]
[1724063750867,3.87028,2583.8,2583.3,3.87087]
[1724063751117,0.14698725,2583.6,2583.3,3.87087]
[1724063751315,3.87059,2583.6,2583.1,8.75849]
[1724063751715,0.1469669,2583.5,2583.1,8.75849]
[1724063753365,0.1469669,2583.5,2583.2,3.87114]
[1724063753629,3.87042,2583.7,2583.2,3.87114]
[1724063753770,0.1469669,2583.6,2583.2,3.87114]
[1724063754578,0.1469669,2583.6,2583.3,3.87099]
[1724063755173,0.1469669,2583.6,2583.2,3.87115]
[1724063757215,0.54870559,2583.6,2583.0,3.87145]
[1724063757511,3.87103,2583.3,2582.8,3.87168]
[1724063757694,5.116242,2583.3,2582.8,3.87168]
[1724063757876,0.14689563,2583.2,2582.8,3.87168]
[1724063758285,5.116242,2583.3,2582.8,3.87168]
[1724063758977,0.14679892,2583.2,2582.9,3.87161]
[1724063759230,3.87103,2583.3,2582.9,3.87161]
[1724063759383,0.14672766,2583.2,2582.9,3.87161]
[1724063759584,0.858109,2583.4,2582.9,3.87161]
[1724063759794,0.14672766,2583.3,2582.9,3.87161]
[1724063760206,0.14672766,2583.3,2583.0,3.87138]
[1724063760481,0.14672766,2583.3,2583.2,8.65146]
[1724063760907,3.87051,2583.7,2583.2,8.65146]
[1724063761219,3.87066,2583.6,2582.8,8.67643]
[1724063761381,3.87094,2583.4,2582.8,8.67643]
[1724063761892,0.14678365,2583.3,2582.8,8.67643]
[1724063762427,4.01781365,2583.3,2582.8,8.67643]
[1724063763753,3.87147,2583.0,2582.6,7.6093]
[1724063763949,3.87147,2583.0,2582.5,3.8722]
[1724063764162,0.14671748,2582.9,2582.5,3.87221]
[1724063764380,0.93569423,2582.9,2582.5,3.87221]
[1724063766140,0.14671748,2582.9,2582.7,3.8719]
[1724063766655,0.14650363,2582.8,2582.7,3.8719]
[1724063766872,8.73237,2583.4,2582.9,3.8716]
[1724063767076,3.87074,2583.5,2583.0,3.87139]
[1724063767241,0.840494,2583.4,2583.1,3.8713]
[1724063767581,3.87072,2583.5,2583.0,3.87143]
[1724063767753,6.127256,2583.5,2583.0,3.87143]
[1724063768879,3.87087,2583.4,2582.8,8.69082]
[1724063769252,4.6185,2583.2,2582.5,4.6207]
[1724063769592,3.87169,2582.9,2582.3,3.87238]
[1724063769803,0.387169,2582.9,2582.2,4.6207]
[1724063770096,8.48967,2583.2,2582.7,3.8719]
[1724063770294,8.48967,2583.2,2582.7,3.87183]
[1724063770443,0.848967,2583.1,2582.7,3.87183]
[1724063770641,0.848967,2583.1,2582.6,4.6458]
[1724063770903,0.848967,2583.1,2582.7,3.87191]
[1724063771266,0.848967,2583.1,2582.7,7.74382]
[1724063771449,3.87103,2583.3,2582.8,3.87169]
[1724063773016,3.87068,2583.6,2583.1,3.87131]
[1724063773144,3.87068,2583.6,2582.9,3.87161]
[1724063773145,3.87072,2583.5,2582.9,7.74309]
[1724063773340,4.986788,2583.5,2583.0,8.27496]
[1724063773947,8.59457,2583.8,2583.2,3.87106]
[1724063774183,7.29,2584.3,2583.5,3.87062]
[1724063774386,8.58431,2584.2,2583.5,3.87062]
[1724063774544,8.58431,2584.2,2583.4,4.5917]
[1724063774545,3.86981,2584.2,2583.4,4.5917]
[1724063774969,3.86981,2584.2,2583.7,3.87034]
[1724063775169,3.86981,2584.2,2583.7,3.87031]
[1724063775375,8.513537,2584.2,2583.5,7.74121]
[1724063775575,3.8698,2584.2,2583.6,3.87053]
[1724063776144,3.86977,2584.2,2583.6,3.87053]
[1724063776370,3.86981,2584.1,2583.6,3.87053]
[1724063776580,3.86998,2584.0,2583.5,3.87058]
[1724063777181,4.4193,2584.1,2583.5,3.87058]
[1724063777749,3.87003,2584.0,2583.5,3.87058]
[1724063777990,8.28915,2584.1,2583.4,4.5917]
[1724063778187,3.87012,2583.9,2583.4,4.5917]
[1724063778989,3.87012,2583.9,2583.4,8.46255]
[1724063779562,3.87032,2583.8,2583.4,4.5917]
[1724063779896,0.14619172,2583.8,2583.4,4.5917]
[1724063780656,4.01648172,2583.8,2583.4,4.5917]
[1724063781595,0.14619172,2583.8,2583.4,4.5917]
[1724063781808,0.14619172,2583.8,2583.4,9.695899]
[1724063782109,0.14619172,2583.8,2583.5,3.8707]
[1724063782564,3.86991,2584.1,2583.5,3.8707]
[1724063782565,3.86984,2584.1,2583.5,3.87059]
[1724063782767,0.14664489,2583.7,2583.6,0.9695639]
[1724063782961,3.86984,2584.1,2583.6,4.8401139]
[1724063783620,0.14664489,2584.0,2583.6,4.8401139]
[1724063783815,4.01661489,2584.0,2583.5,3.87059]
[1724063784003,4.01661489,2584.0,2583.5,7.74122]
[1724063784615,0.14664489,2584.0,2583.6,3.87053]
[1724063786109,0.14664489,2584.0,2583.5,3.87059]
[1724063786748,4.01661489,2584.0,2583.5,3.87059]
[1724063787452,4.6284,2583.8,2582.8,4.4043]
[1724063787648,3.87125,2583.2,2582.8,4.4043]
[1724063787797,0.14673142,2583.1,2582.8,4.4043]
[1724063788004,0.14673142,2583.1,2582.8,5.619123]
[1724063788205,3.87092,2583.4,2582.8,8.27599]
[1724063788436,0.14673142,2583.3,2582.9,3.87161]
[1724063788733,0.14673142,2583.3,2583.2,8.73126]
[1724063789034,3.87035,2583.8,2583.2,9.991522]
[1724063789196,3.87035,2583.8,2583.3,3.87099]
[1724063789402,0.14673142,2583.7,2583.5,3.87071]
[1724063789601,3.87016,2583.9,2583.4,3.87078]
[1724063789836,0.14673142,2583.8,2583.4,4.8699152]
[1724063790138,0.14673142,2583.8,2583.5,3.87069]
[1724063790322,0.14673142,2583.8,2583.6,4.5024]
[1724063790524,3.87012,2583.9,2583.6,4.5024]
[1724063790837,0.14673142,2583.7,2583.6,4.5024]
[1724063791333,3.87012,2583.9,2583.6,4.5024]
[1724063791538,0.14673142,2583.7,2583.6,4.5024]
[1724063791740,3.87012,2583.9,2583.6,4.5024]
[1724063791937,0.14673142,2583.7,2583.6,4.5024]
[1724063792139,3.86992,2584.1,2583.6,5.339726]
[1724063792443,3.86997,2584.0,2583.6,4.5024]
[1724063792751,0.14673142,2583.9,2583.6,4.5024]
[1724063794169,3.87036,2583.8,2583.3,4.8692]
[1724063794534,4.4461,2584.0,2583.3,4.8692]
[1724063794535,4.01725125,2583.7,2583.3,4.8692]
[1724063794774,3.87068,2583.6,2583.3,4.8692]
[1724063795130,0.14672125,2583.5,2583.3,4.8692]
[1724063797327,3.8705,2583.7,2583.3,4.8692]
[1724063797526,0.14672125,2583.4,2583.3,4.8692]
[1724063797928,3.8705,2583.7,2583.3,4.8692]
[1724063798133,0.14672125,2583.4,2583.3,4.8692]
[1724063798372,3.8705,2583.7,2583.3,4.8692]
[1724063798571,0.14672125,2583.4,2583.3,4.8692]
[1724063799435,0.14672125,2583.4,2583.3,6.430359]
[1724063799645,3.87027,2583.8,2583.3,6.430359]
[1724063799846,3.87027,2583.8,2583.3,4.8692]
[1724063800074,0.14672125,2583.7,2583.3,4.8692]
[1724063800279,3.87027,2583.8,2583.3,4.8692]
[1724063800580,3.87045,2583.7,2583.3,8.74021]
[1724063800798,0.14657872,2583.7,2583.3,8.74021]
[1724063801297,7.74065,2583.8,2583.3,8.74009]
[1724063801298,0.14657872,2583.6,2583.3,8.74009]
[1724063801460,0.14657872,2583.6,2583.3,10.301234]
[1724063801659,3.86991,2584.1,2583.5,3.87071]
[1724063801857,0.14657872,2584.0,2583.5,8.71591]
[1724063802193,0.14657872,2584.0,2583.7,3.87041]
[1724063802392,0.14657872,2584.0,2583.6,3.87056]
[1724063802595,0.14657872,2584.0,2583.5,8.71591]
[1724063802809,4.41826759,2584.0,2583.5,8.71591]
[1724063803394,3.87023,2583.9,2583.5,4.8452]
[1724063803712,3.87027,2583.8,2583.2,4.795]
[1724063803915,7.74132,2583.6,2583.2,4.795]
[1724063804072,7.74132,2583.6,2583.0,3.87136]
[1724063804073,3.87078,2583.5,2583.0,3.87136]
[1724063804274,0.14673649,2583.4,2583.0,3.87136]
[1724063805857,0.14673649,2583.4,2582.9,4.795]
[1724063806104,3.87119,2583.2,2582.9,4.795]
[1724063806310,0.1465685,2583.3,2582.9,4.795]
[1724063806618,0.1465074,2583.1,2582.9,4.795]
[1724063806919,0.1465074,2583.0,2582.8,3.87165]
[1724063807210,3.87102,2583.3,2582.8,3.87165]
[1724063807413,0.1465074,2582.9,2582.8,3.87165]